[Event "January 2 Late 2024"]
[Site "https://www.chess.com"]
[Date "2024.01.02"]
[Round "3"]
[White "Bristy Mukherjee"]
[Black "Coca Cubillos, Jesus Alberto"]
[Result "0-1"]
[Board "124"]
[TimeControl "180+1"]
[WhiteFideId "25077325"]
[BlackFideId "4462912"]
[WhiteElo "2411"]
[BlackElo "2607"]
[WhiteTeam "IND"]
[BlackTeam "COL"]
[WhiteClock "0:00:09"]
[BlackClock "0:00:33"]

1. d4 {[%clk 0:03:00]}  g6 {[%clk 0:02:59]} 2. h4 {[%clk 0:02:59]}  h6 {[%clk 0:02:58]} 3. h5 {[%clk 0:03:00]}  g5 {[%clk 0:02:59]} 4. e4 {[%clk 0:03:00]}  Bg7 {[%clk 0:02:58]} 5. c3 {[%clk 0:02:59]}  d6 {[%clk 0:02:59]} 6. Bd3 {[%clk 0:03:00]}  Nc6 {[%clk 0:02:59]} 7. Ne2 {[%clk 0:02:59]}  e5 {[%clk 0:03:00]} 8. Be3 {[%clk 0:02:58]}  Nge7 {[%clk 0:02:56]} 9. Nd2 {[%clk 0:02:57]}  O-O {[%clk 0:02:56]} 10. Ng3 {[%clk 0:02:57]}  f5 {[%clk 0:02:56]} 11. exf5 {[%clk 0:02:56]}  Nxf5 {[%clk 0:02:57]} 12. Nxf5 {[%clk 0:02:56]}  Bxf5 {[%clk 0:02:57]} 13. Bxf5 {[%clk 0:02:57]}  Rxf5 {[%clk 0:02:57]} 14. Qb3+ {[%clk 0:02:57]}  Kh8 {[%clk 0:02:52]} 15. Qxb7 {[%clk 0:02:57]}  exd4 {[%clk 0:02:50]} 16. Qxc6 {[%clk 0:02:54]}  dxe3 {[%clk 0:02:50]} 17. fxe3 {[%clk 0:02:54]}  Qe8 {[%clk 0:02:35]} 18. Qxe8+ {[%clk 0:02:51]}  Rxe8 {[%clk 0:02:36]} 19. e4 {[%clk 0:02:52]}  d5 {[%clk 0:02:34]} 20. Rf1 {[%clk 0:02:36]}  Rfe5 {[%clk 0:02:29]} 21. Ke2 {[%clk 0:02:33]}  dxe4 {[%clk 0:02:29]} 22. Rf7 {[%clk 0:02:32]}  Rb5 {[%clk 0:02:27]} 23. Nc4 {[%clk 0:02:26]}  Rc5 {[%clk 0:02:23]} 24. Ne3 {[%clk 0:02:25]}  Rb8 {[%clk 0:02:21]} 25. Nd1 {[%clk 0:01:59]}  a5 {[%clk 0:02:05]} 26. Rc1 {[%clk 0:01:59]}  a4 {[%clk 0:02:05]} 27. Rc2 {[%clk 0:01:59]}  g4 {[%clk 0:01:59]} 28. Ne3 {[%clk 0:01:55]}  Rxh5 {[%clk 0:01:55]} 29. Nxg4 {[%clk 0:01:52]}  Rg5 {[%clk 0:01:55]} 30. Ne3 {[%clk 0:01:52]}  Rgb5 {[%clk 0:01:46]} 31. Nf5 {[%clk 0:01:43]}  Rxb2 {[%clk 0:01:39]} 32. Kd2 {[%clk 0:01:28]}  Be5 {[%clk 0:01:17]} 33. Nxh6 {[%clk 0:01:22]}  a3 {[%clk 0:01:16]} 34. Rf5 {[%clk 0:01:17]}  e3+ {[%clk 0:01:13]} 35. Kd3 {[%clk 0:01:03]}  Rxc2 {[%clk 0:01:03]} 36. Kxc2 {[%clk 0:00:57]}  Bg7 {[%clk 0:01:03]} 37. Nf7+ {[%clk 0:00:50]}  Kg8 {[%clk 0:01:03]} 38. Ng5 {[%clk 0:00:50]}  Rb2+ {[%clk 0:01:03]} 39. Kd3 {[%clk 0:00:46]}  Rxg2 {[%clk 0:01:03]} 40. Ra5 {[%clk 0:00:45]}  Bh6 {[%clk 0:01:03]} 41. Nf3 {[%clk 0:00:38]}  Rxa2 {[%clk 0:01:01]} 42. Rc5 {[%clk 0:00:33]}  Rf2 {[%clk 0:01:00]} 43. Nd4 {[%clk 0:00:29]}  Rd2+ {[%clk 0:00:58]} 44. Kc4 {[%clk 0:00:26]}  e2 {[%clk 0:00:58]} 45. Nf3 {[%clk 0:00:19]}  Rd1 {[%clk 0:00:45]} 46. Ra5 {[%clk 0:00:19]}  Bf8 {[%clk 0:00:40]} 47. Kb3 {[%clk 0:00:18]}  e1=Q {[%clk 0:00:39]} 48. Nxe1 {[%clk 0:00:18]}  Rxe1 {[%clk 0:00:40]} 49. Ra7 {[%clk 0:00:18]}  Rb1+ {[%clk 0:00:39]} 50. Ka2 {[%clk 0:00:18]}  Rb2+ {[%clk 0:00:37]} 51. Ka1 {[%clk 0:00:18]}  Bd6 {[%clk 0:00:36]} 52. c4 {[%clk 0:00:19]}  Rc2 {[%clk 0:00:36]} 53. Ra4 {[%clk 0:00:16]}  a2 {[%clk 0:00:33]} 54. c5 {[%clk 0:00:09]}  Be5+ {[%clk 0:00:33]} 0-1

[Event "January 2 Late 2024"]
[Site "https://www.chess.com"]
[Date "2024.01.02"]
[Round "3"]
[White "Andrews, Todd"]
[Black "Awoki, Daniel Teidi"]
[Result "0-1"]
[Board "127"]
[TimeControl "180+1"]
[WhiteFideId "2012456"]
[BlackFideId "2100827"]
[WhiteElo "2586"]
[BlackElo "2404"]
[WhiteTeam "USA"]
[BlackTeam "BRA"]
[WhiteClock "0:00:07"]
[BlackClock "0:00:15"]

1. d4 {[%clk 0:03:00]}  Nf6 {[%clk 0:02:59]} 2. c4 {[%clk 0:03:00]}  e6 {[%clk 0:03:00]} 3. Nc3 {[%clk 0:03:01]}  d5 {[%clk 0:03:00]} 4. cxd5 {[%clk 0:03:00]}  exd5 {[%clk 0:03:01]} 5. Bg5 {[%clk 0:02:59]}  Nbd7 {[%clk 0:03:01]} 6. e3 {[%clk 0:03:00]}  c6 {[%clk 0:03:01]} 7. Bd3 {[%clk 0:02:59]}  Be7 {[%clk 0:03:02]} 8. Qc2 {[%clk 0:02:59]}  O-O {[%clk 0:03:02]} 9. Nge2 {[%clk 0:03:00]}  h6 {[%clk 0:03:01]} 10. Bh4 {[%clk 0:03:00]}  Re8 {[%clk 0:02:59]} 11. O-O {[%clk 0:03:00]}  Ne4 {[%clk 0:02:58]} 12. Bxe7 {[%clk 0:02:59]}  Qxe7 {[%clk 0:02:59]} 13. Rae1 {[%clk 0:02:55]}  Nxc3 {[%clk 0:02:58]} 14. Nxc3 {[%clk 0:02:54]}  Nf6 {[%clk 0:02:49]} 15. f3 {[%clk 0:02:54]}  c5 {[%clk 0:02:47]} 16. Qd2 {[%clk 0:02:50]}  a6 {[%clk 0:02:44]} 17. Kh1 {[%clk 0:02:46]}  cxd4 {[%clk 0:02:41]} 18. exd4 {[%clk 0:02:46]}  Be6 {[%clk 0:02:42]} 19. f4 {[%clk 0:02:40]}  Qd6 {[%clk 0:02:38]} 20. f5 {[%clk 0:02:25]}  Bd7 {[%clk 0:02:37]} 21. Ne2 {[%clk 0:01:37]}  Ng4 {[%clk 0:02:33]} 22. Ng3 {[%clk 0:01:37]}  Rxe1 {[%clk 0:02:24]} 23. Rxe1 {[%clk 0:01:36]}  Re8 {[%clk 0:02:23]} 24. Rxe8+ {[%clk 0:01:36]}  Bxe8 {[%clk 0:02:24]} 25. Qe2 {[%clk 0:01:36]}  Nf6 {[%clk 0:02:20]} 26. Qe5 {[%clk 0:01:35]}  Qc6 {[%clk 0:02:10]} 27. h3 {[%clk 0:01:22]}  Qc1+ {[%clk 0:02:04]} 28. Kh2 {[%clk 0:01:23]}  Qxb2 {[%clk 0:02:02]} 29. Nh5 {[%clk 0:01:23]}  Bb5 {[%clk 0:01:28]} 30. Nxf6+ {[%clk 0:01:07]}  gxf6 {[%clk 0:01:27]} 31. Qb8+ {[%clk 0:00:57]}  Kg7 {[%clk 0:01:21]} 32. Qg3+ {[%clk 0:00:56]}  Kh7 {[%clk 0:01:20]} 33. Bxb5 {[%clk 0:00:48]}  Qxb5 {[%clk 0:01:17]} 34. Qc7 {[%clk 0:00:44]}  Kg7 {[%clk 0:01:09]} 35. Qg3+ {[%clk 0:00:44]}  Kf8 {[%clk 0:01:10]} 36. Qd6+ {[%clk 0:00:43]}  Kg7 {[%clk 0:01:07]} 37. Qg3+ {[%clk 0:00:36]}  Kh8 {[%clk 0:00:57]} 38. Qh4 {[%clk 0:00:31]}  Kh7 {[%clk 0:00:49]} 39. Qxf6 {[%clk 0:00:27]}  Qd7 {[%clk 0:00:49]} 40. h4 {[%clk 0:00:23]}  a5 {[%clk 0:00:39]} 41. g4 {[%clk 0:00:20]}  b5 {[%clk 0:00:31]} 42. g5 {[%clk 0:00:20]}  hxg5 {[%clk 0:00:32]} 43. hxg5 {[%clk 0:00:19]}  b4 {[%clk 0:00:28]} 44. g6+ {[%clk 0:00:14]}  fxg6 {[%clk 0:00:28]} 45. fxg6+ {[%clk 0:00:12]}  Kg8 {[%clk 0:00:26]} 46. Qe5 {[%clk 0:00:13]}  a4 {[%clk 0:00:21]} 47. Qg3 {[%clk 0:00:13]}  Kg7 {[%clk 0:00:17]} 48. Qe5+ {[%clk 0:00:13]}  Kxg6 {[%clk 0:00:17]} 49. Qg3+ {[%clk 0:00:13]}  Kf7 {[%clk 0:00:15]} 50. Qf4+ {[%clk 0:00:12]}  Ke8 {[%clk 0:00:13]} 51. Qe5+ {[%clk 0:00:11]}  Kf7 {[%clk 0:00:12]} 52. Qe4 {[%clk 0:00:12]}  dxe4 {[%clk 0:00:11]} 53. Kg3 {[%clk 0:00:12]}  Qxd4 {[%clk 0:00:11]} 54. Kf4 {[%clk 0:00:11]}  e3+ {[%clk 0:00:11]} 55. Kf3 {[%clk 0:00:12]}  e2 {[%clk 0:00:11]} 56. Kxe2 {[%clk 0:00:08]}  Qc3 {[%clk 0:00:12]} 57. Kf2 {[%clk 0:00:07]}  b3 {[%clk 0:00:12]} 58. axb3 {[%clk 0:00:07]}  axb3 {[%clk 0:00:13]} 59. Ke2 {[%clk 0:00:07]}  b2 {[%clk 0:00:14]} 60. Kf2 {[%clk 0:00:08]}  b1=Q {[%clk 0:00:14]} 61. Ke2 {[%clk 0:00:08]}  Qbb2+ {[%clk 0:00:15]} 62. Kd1 {[%clk 0:00:07]}  Qcc1# {[%clk 0:00:15]} 0-1

[Event "January 2 Late 2024"]
[Site "https://www.chess.com"]
[Date "2024.01.02"]
[Round "3"]
[White "Grycel, Kamil"]
[Black "Rego, Pedro Filipe"]
[Result "1-0"]
[Board "128"]
[TimeControl "180+1"]
[WhiteFideId "1115499"]
[BlackFideId "1904310"]
[WhiteElo "2585"]
[BlackElo "2404"]
[WhiteTeam "POL"]
[BlackTeam "POR"]
[WhiteClock "0:01:44"]
[BlackClock "0:00:52"]

1. d4 {[%clk 0:03:00]}  Nf6 {[%clk 0:02:56]} 2. Nf3 {[%clk 0:03:00]}  d5 {[%clk 0:02:53]} 3. Bf4 {[%clk 0:03:00]}  c5 {[%clk 0:02:53]} 4. c3 {[%clk 0:03:00]}  Nc6 {[%clk 0:02:53]} 5. e3 {[%clk 0:03:00]}  Qb6 {[%clk 0:02:52]} 6. Qb3 {[%clk 0:03:00]}  c4 {[%clk 0:02:52]} 7. Qc2 {[%clk 0:03:00]}  g6 {[%clk 0:02:51]} 8. Nbd2 {[%clk 0:02:59]}  Bf5 {[%clk 0:02:50]} 9. Qc1 {[%clk 0:02:58]}  Bg7 {[%clk 0:02:50]} 10. h3 {[%clk 0:02:58]}  O-O {[%clk 0:02:50]} 11. Be2 {[%clk 0:02:57]}  Qa6 {[%clk 0:02:38]} 12. O-O {[%clk 0:02:49]}  b5 {[%clk 0:02:35]} 13. b4 {[%clk 0:02:36]}  Qb7 {[%clk 0:02:16]} 14. a4 {[%clk 0:02:30]}  a6 {[%clk 0:02:15]} 15. Qb2 {[%clk 0:02:22]}  Ne4 {[%clk 0:02:11]} 16. Nxe4 {[%clk 0:02:18]}  Bxe4 {[%clk 0:02:12]} 17. Ra3 {[%clk 0:02:14]}  f6 {[%clk 0:02:05]} 18. Rfa1 {[%clk 0:02:07]}  e5 {[%clk 0:02:02]} 19. Bg3 {[%clk 0:02:08]}  Bxf3 {[%clk 0:02:00]} 20. Bxf3 {[%clk 0:02:08]}  e4 {[%clk 0:01:55]} 21. Be2 {[%clk 0:02:05]}  Rfc8 {[%clk 0:01:30]} 22. Qa2 {[%clk 0:01:57]}  bxa4 {[%clk 0:01:13]} 23. Rxa4 {[%clk 0:01:57]}  a5 {[%clk 0:01:10]} 24. bxa5 {[%clk 0:01:52]}  Ra6 {[%clk 0:01:07]} 25. Rb1 {[%clk 0:01:47]}  Qe7 {[%clk 0:00:52]} 26. Bxc4 {[%clk 0:01:44]} 1-0

[Event "January 2 Late 2024"]
[Site "https://www.chess.com"]
[Date "2024.01.02"]
[Round "3"]
[White "ArchibaldCerveza29"]
[Black "Potapova, Margarita"]
[Result "1-0"]
[Board "130"]
[TimeControl "180+1"]
[BlackFideId "14126869"]
[WhiteElo "2396"]
[BlackElo "2584"]
[BlackTeam "RUS"]
[WhiteClock "0:00:06"]
[BlackClock "0:00:00"]

1. b3 {[%clk 0:03:00]}  d5 {[%clk 0:02:58]} 2. Bb2 {[%clk 0:03:00]}  c5 {[%clk 0:02:58]} 3. g3 {[%clk 0:03:01]}  Nf6 {[%clk 0:02:59]} 4. Bg2 {[%clk 0:03:02]}  g6 {[%clk 0:02:59]} 5. d3 {[%clk 0:03:01]}  Bg7 {[%clk 0:02:59]} 6. e3 {[%clk 0:03:02]}  O-O {[%clk 0:02:59]} 7. Ne2 {[%clk 0:03:03]}  Nc6 {[%clk 0:03:00]} 8. O-O {[%clk 0:03:03]}  e5 {[%clk 0:03:01]} 9. Nd2 {[%clk 0:03:04]}  Be6 {[%clk 0:02:57]} 10. h3 {[%clk 0:03:04]}  Qd7 {[%clk 0:02:56]} 11. Kh2 {[%clk 0:03:04]}  b5 {[%clk 0:02:55]} 12. a4 {[%clk 0:03:04]}  a6 {[%clk 0:02:53]} 13. Qc1 {[%clk 0:02:48]}  h5 {[%clk 0:02:52]} 14. Nf3 {[%clk 0:02:46]}  Nh7 {[%clk 0:02:51]} 15. axb5 {[%clk 0:02:37]}  axb5 {[%clk 0:02:50]} 16. Rxa8 {[%clk 0:02:38]}  Rxa8 {[%clk 0:02:51]} 17. Rd1 {[%clk 0:02:22]}  d4 {[%clk 0:02:43]} 18. c3 {[%clk 0:02:01]}  Bxb3 {[%clk 0:02:37]} 19. Re1 {[%clk 0:01:57]}  Bh6 {[%clk 0:02:11]} 20. cxd4 {[%clk 0:01:57]}  cxd4 {[%clk 0:02:09]} 21. Qc5 {[%clk 0:01:39]}  Qd5 {[%clk 0:02:04]} 22. exd4 {[%clk 0:01:05]}  Ra2 {[%clk 0:01:59]} 23. Bc3 {[%clk 0:00:40]}  b4 {[%clk 0:01:32]} 24. Bxb4 {[%clk 0:00:35]}  Nxb4 {[%clk 0:01:33]} 25. Qxb4 {[%clk 0:00:34]}  Bf8 {[%clk 0:01:34]} 26. Qb8 {[%clk 0:00:32]}  Ra8 {[%clk 0:01:12]} 27. Qxe5 {[%clk 0:00:30]}  Qd8 {[%clk 0:01:08]} 28. Nf4 {[%clk 0:00:22]}  Bg7 {[%clk 0:01:06]} 29. Qe4 {[%clk 0:00:21]}  Rb8 {[%clk 0:01:00]} 30. Ne5 {[%clk 0:00:20]}  Nf6 {[%clk 0:01:00]} 31. Qe3 {[%clk 0:00:20]}  Bh6 {[%clk 0:00:56]} 32. Nc6 {[%clk 0:00:20]}  Qc7 {[%clk 0:00:52]} 33. Nxb8 {[%clk 0:00:20]}  Qxb8 {[%clk 0:00:53]} 34. Qe5 {[%clk 0:00:21]}  Qd8 {[%clk 0:00:49]} 35. d5 {[%clk 0:00:18]}  Bg7 {[%clk 0:00:48]} 36. Qe7 {[%clk 0:00:18]}  Qb6 {[%clk 0:00:45]} 37. d6 {[%clk 0:00:17]}  Qxf2 {[%clk 0:00:45]} 38. Qe3 {[%clk 0:00:11]}  Qb2 {[%clk 0:00:41]} 39. d4 {[%clk 0:00:11]}  h4 {[%clk 0:00:39]} 40. gxh4 {[%clk 0:00:10]}  Bh6 {[%clk 0:00:40]} 41. Rf1 {[%clk 0:00:09]}  Bc4 {[%clk 0:00:39]} 42. Qf2 {[%clk 0:00:08]}  Qb8 {[%clk 0:00:36]} 43. Qg3 {[%clk 0:00:06]}  Qxd6 {[%clk 0:00:34]} 44. Nh5 {[%clk 0:00:05]}  Qxg3+ {[%clk 0:00:29]} 45. Nxg3 {[%clk 0:00:06]}  Bg7 {[%clk 0:00:27]} 46. Rc1 {[%clk 0:00:06]}  Ba2 {[%clk 0:00:24]} 47. Rc2 {[%clk 0:00:06]}  Be6 {[%clk 0:00:24]} 48. Rd2 {[%clk 0:00:04]}  Bh6 {[%clk 0:00:24]} 49. Rd1 {[%clk 0:00:04]}  Bf4 {[%clk 0:00:24]} 50. Rf1 {[%clk 0:00:02]}  Nh5 {[%clk 0:00:19]} 51. Rxf4 {[%clk 0:00:02]}  Nxf4 {[%clk 0:00:20]} 52. Be4 {[%clk 0:00:02]}  Kf8 {[%clk 0:00:18]} 53. h5 {[%clk 0:00:03]}  gxh5 {[%clk 0:00:16]} 54. h4 {[%clk 0:00:03]}  Ke7 {[%clk 0:00:12]} 55. Nf1 {[%clk 0:00:03]}  Kd6 {[%clk 0:00:12]} 56. Ne3 {[%clk 0:00:03]}  Bc8 {[%clk 0:00:09]} 57. Bf3 {[%clk 0:00:04]}  Bd7 {[%clk 0:00:07]} 58. Kg3 {[%clk 0:00:04]}  Ne6 {[%clk 0:00:06]} 59. d5 {[%clk 0:00:04]}  Nc7 {[%clk 0:00:05]} 60. Bxh5 {[%clk 0:00:05]}  f6 {[%clk 0:00:06]} 61. Bf3 {[%clk 0:00:05]}  Be8 {[%clk 0:00:06]} 62. h5 {[%clk 0:00:05]}  Bf7 {[%clk 0:00:06]} 63. h6 {[%clk 0:00:05]}  Bg6 {[%clk 0:00:06]} 64. Kf4 {[%clk 0:00:05]}  Ne8 {[%clk 0:00:06]} 65. Be4 {[%clk 0:00:05]}  f5 {[%clk 0:00:03]} 66. Bxf5 {[%clk 0:00:05]}  Bxf5 {[%clk 0:00:03]} 67. Nxf5+ {[%clk 0:00:06]}  Kxd5 {[%clk 0:00:00]} 68. h7 {[%clk 0:00:06]} 1-0

[Event "January 2 Late 2024"]
[Site "https://www.chess.com"]
[Date "2024.01.02"]
[Round "3"]
[White "Avramidou, Anastasia"]
[Black "Ramos Rivera, Jesse James"]
[Result "0-1"]
[Board "131"]
[TimeControl "180+1"]
[WhiteFideId "4239873"]
[BlackFideId "3103250"]
[WhiteElo "2584"]
[BlackElo "2391"]
[WhiteTeam "GRE"]
[BlackTeam "PUR"]
[WhiteClock "0:00:02"]
[BlackClock "0:00:06"]

1. Nf3 {[%clk 0:03:00]}  Nf6 {[%clk 0:02:51]} 2. c4 {[%clk 0:03:00]}  g6 {[%clk 0:02:43]} 3. Nc3 {[%clk 0:03:01]}  Bg7 {[%clk 0:02:43]} 4. e4 {[%clk 0:03:01]}  c5 {[%clk 0:02:43]} 5. g3 {[%clk 0:02:59]}  O-O {[%clk 0:02:42]} 6. Bg2 {[%clk 0:02:59]}  Nc6 {[%clk 0:02:42]} 7. O-O {[%clk 0:03:00]}  d6 {[%clk 0:02:41]} 8. d3 {[%clk 0:03:00]}  Bg4 {[%clk 0:02:37]} 9. h3 {[%clk 0:03:00]}  Bxf3 {[%clk 0:02:37]} 10. Bxf3 {[%clk 0:03:01]}  Rb8 {[%clk 0:02:37]} 11. Bg2 {[%clk 0:03:00]}  a6 {[%clk 0:02:35]} 12. a4 {[%clk 0:03:00]}  Nd7 {[%clk 0:02:35]} 13. f4 {[%clk 0:02:58]}  Nd4 {[%clk 0:02:34]} 14. Kh1 {[%clk 0:02:42]}  b5 {[%clk 0:02:33]} 15. cxb5 {[%clk 0:02:41]}  axb5 {[%clk 0:02:34]} 16. a5 {[%clk 0:02:41]}  b4 {[%clk 0:02:29]} 17. Nd5 {[%clk 0:02:26]}  e6 {[%clk 0:02:27]} 18. Ne3 {[%clk 0:02:26]}  Ra8 {[%clk 0:02:20]} 19. Nc4 {[%clk 0:02:22]}  Qc7 {[%clk 0:02:13]} 20. Be3 {[%clk 0:02:14]}  Ra7 {[%clk 0:02:03]} 21. Ra2 {[%clk 0:01:51]}  Nb8 {[%clk 0:01:51]} 22. e5 {[%clk 0:01:27]}  dxe5 {[%clk 0:01:26]} 23. Nxe5 {[%clk 0:01:21]}  Nf5 {[%clk 0:01:19]} 24. Bf2 {[%clk 0:01:14]}  Bxe5 {[%clk 0:01:17]} 25. fxe5 {[%clk 0:01:13]}  Qxe5 {[%clk 0:01:18]} 26. g4 {[%clk 0:00:54]}  Ng3+ {[%clk 0:01:02]} 27. Bxg3 {[%clk 0:00:54]}  Qxg3 {[%clk 0:01:03]} 28. Qc2 {[%clk 0:00:40]}  Qd6 {[%clk 0:00:36]} 29. Rc1 {[%clk 0:00:40]}  Nd7 {[%clk 0:00:27]} 30. a6 {[%clk 0:00:40]}  Rxa6 {[%clk 0:00:24]} 31. Rxa6 {[%clk 0:00:34]}  Qxa6 {[%clk 0:00:25]} 32. b3 {[%clk 0:00:31]}  Qd6 {[%clk 0:00:24]} 33. Rd1 {[%clk 0:00:30]}  Rc8 {[%clk 0:00:22]} 34. d4 {[%clk 0:00:28]}  Nf6 {[%clk 0:00:17]} 35. Qe2 {[%clk 0:00:19]}  cxd4 {[%clk 0:00:15]} 36. Qf2 {[%clk 0:00:15]}  e5 {[%clk 0:00:14]} 37. g5 {[%clk 0:00:13]}  Nh5 {[%clk 0:00:13]} 38. Be4 {[%clk 0:00:09]}  Rc3 {[%clk 0:00:11]} 39. Rf1 {[%clk 0:00:05]}  Rxh3+ {[%clk 0:00:06]} 40. Kg2 {[%clk 0:00:05]}  Rg3+ {[%clk 0:00:07]} 41. Kh2 {[%clk 0:00:05]}  Qe6 {[%clk 0:00:07]} 42. Bg2 {[%clk 0:00:04]}  Rxg5 {[%clk 0:00:06]} 43. Bh3 {[%clk 0:00:04]}  Qe7 {[%clk 0:00:06]} 44. Qd2 {[%clk 0:00:03]}  Nf4 {[%clk 0:00:06]} 45. Rxf4 {[%clk 0:00:03]}  exf4 {[%clk 0:00:06]} 46. Qxf4 {[%clk 0:00:02]}  Qe5 {[%clk 0:00:06]} 0-1

[Event "January 2 Late 2024"]
[Site "https://www.chess.com"]
[Date "2024.01.02"]
[Round "3"]
[White "RemcoSpr"]
[Black "Aggelis, Nikolaos"]
[Result "0-1"]
[Board "133"]
[TimeControl "180+1"]
[BlackFideId "4213220"]
[WhiteElo "2386"]
[BlackElo "2577"]
[BlackTeam "GRE"]
[WhiteClock "0:00:18"]
[BlackClock "0:00:17"]

1. e4 {[%clk 0:03:00]}  c5 {[%clk 0:02:55]} 2. Nf3 {[%clk 0:03:01]}  g6 {[%clk 0:02:41]} 3. d4 {[%clk 0:03:00]}  cxd4 {[%clk 0:02:42]} 4. Nxd4 {[%clk 0:03:01]}  Bg7 {[%clk 0:02:41]} 5. Nc3 {[%clk 0:03:01]}  Nc6 {[%clk 0:02:42]} 6. Be3 {[%clk 0:03:01]}  Nf6 {[%clk 0:02:41]} 7. Bc4 {[%clk 0:03:01]}  O-O {[%clk 0:02:40]} 8. Bb3 {[%clk 0:03:00]}  e6 {[%clk 0:02:30]} 9. O-O {[%clk 0:02:53]}  d5 {[%clk 0:02:29]} 10. exd5 {[%clk 0:02:53]}  Nxd5 {[%clk 0:02:24]} 11. Nxd5 {[%clk 0:02:53]}  exd5 {[%clk 0:02:23]} 12. h3 {[%clk 0:02:49]}  Ne5 {[%clk 0:02:16]} 13. Qe2 {[%clk 0:02:39]}  b6 {[%clk 0:01:51]} 14. Rfd1 {[%clk 0:02:38]}  Bb7 {[%clk 0:01:50]} 15. Nf3 {[%clk 0:02:35]}  Nxf3+ {[%clk 0:01:44]} 16. Qxf3 {[%clk 0:02:33]}  Bxb2 {[%clk 0:01:44]} 17. Bxd5 {[%clk 0:02:30]}  Bxd5 {[%clk 0:01:40]} 18. Rxd5 {[%clk 0:02:30]}  Qf6 {[%clk 0:01:37]} 19. Rad1 {[%clk 0:02:03]}  Qxf3 {[%clk 0:01:31]} 20. gxf3 {[%clk 0:02:04]}  Rfc8 {[%clk 0:01:28]} 21. R1d2 {[%clk 0:02:00]}  Bc3 {[%clk 0:01:19]} 22. Re2 {[%clk 0:01:55]}  Rd8 {[%clk 0:01:17]} 23. Rxd8+ {[%clk 0:01:54]}  Rxd8 {[%clk 0:01:18]} 24. Kg2 {[%clk 0:01:52]}  Kg7 {[%clk 0:01:15]} 25. Bf4 {[%clk 0:01:49]}  Rd5 {[%clk 0:01:11]} 26. Re4 {[%clk 0:01:38]}  Ra5 {[%clk 0:01:05]} 27. a4 {[%clk 0:01:38]}  Bf6 {[%clk 0:01:05]} 28. Bb8 {[%clk 0:01:33]}  h5 {[%clk 0:00:57]} 29. Rc4 {[%clk 0:01:29]}  Be5 {[%clk 0:00:54]} 30. Bxe5+ {[%clk 0:01:25]}  Rxe5 {[%clk 0:00:54]} 31. f4 {[%clk 0:01:20]}  Ra5 {[%clk 0:00:54]} 32. Kf3 {[%clk 0:01:19]}  Kf6 {[%clk 0:00:51]} 33. Ke4 {[%clk 0:01:18]}  Ke6 {[%clk 0:00:51]} 34. Rc6+ {[%clk 0:01:17]}  Kd7 {[%clk 0:00:51]} 35. Rc4 {[%clk 0:01:17]}  Kd6 {[%clk 0:00:51]} 36. Kd4 {[%clk 0:01:14]}  Rf5 {[%clk 0:00:49]} 37. Ke4 {[%clk 0:01:14]}  Rc5 {[%clk 0:00:50]} 38. Rd4+ {[%clk 0:01:10]}  Ke6 {[%clk 0:00:48]} 39. Kd3 {[%clk 0:00:40]}  Rd5 {[%clk 0:00:41]} 40. Ke4 {[%clk 0:00:40]}  Rxd4+ {[%clk 0:00:38]} 41. Kxd4 {[%clk 0:00:41]}  Kf5 {[%clk 0:00:39]} 42. Ke3 {[%clk 0:00:40]}  f6 {[%clk 0:00:39]} 43. Kf3 {[%clk 0:00:37]}  g5 {[%clk 0:00:39]} 44. fxg5 {[%clk 0:00:36]}  fxg5 {[%clk 0:00:40]} 45. Ke3 {[%clk 0:00:34]}  g4 {[%clk 0:00:37]} 46. hxg4+ {[%clk 0:00:34]}  Kxg4 {[%clk 0:00:37]} 47. f3+ {[%clk 0:00:26]}  Kg3 {[%clk 0:00:34]} 48. f4 {[%clk 0:00:24]}  Kg4 {[%clk 0:00:33]} 49. Ke4 {[%clk 0:00:17]}  h4 {[%clk 0:00:33]} 50. f5 {[%clk 0:00:18]}  h3 {[%clk 0:00:33]} 51. f6 {[%clk 0:00:18]}  h2 {[%clk 0:00:34]} 52. f7 {[%clk 0:00:18]}  h1=Q+ {[%clk 0:00:35]} 53. Ke5 {[%clk 0:00:18]}  Qe1+ {[%clk 0:00:30]} 54. Kf6 {[%clk 0:00:18]}  Qc3+ {[%clk 0:00:29]} 55. Ke7 {[%clk 0:00:18]}  Qc5+ {[%clk 0:00:22]} 56. Ke8 {[%clk 0:00:18]}  Qc6+ {[%clk 0:00:21]} 57. Ke7 {[%clk 0:00:19]}  Qc7+ {[%clk 0:00:20]} 58. Ke8 {[%clk 0:00:19]}  Qe5+ {[%clk 0:00:21]} 59. Kd7 {[%clk 0:00:19]}  Qf6 {[%clk 0:00:20]} 60. Ke8 {[%clk 0:00:19]}  Qe6+ {[%clk 0:00:20]} 61. Kf8 {[%clk 0:00:19]}  Kg5 {[%clk 0:00:20]} 62. Kg7 {[%clk 0:00:20]}  Qh6+ {[%clk 0:00:20]} 63. Kg8 {[%clk 0:00:20]}  Kg6 {[%clk 0:00:18]} 64. f8=Q {[%clk 0:00:18]}  Qh7# {[%clk 0:00:17]} 0-1

[Event "January 2 Late 2024"]
[Site "https://www.chess.com"]
[Date "2024.01.02"]
[Round "3"]
[White "Cervantes Landeiro, Thalia"]
[Black "Kostiukov, Alexandr"]
[Result "1-0"]
[Board "139"]
[TimeControl "180+1"]
[WhiteFideId "3520498"]
[BlackFideId "14108100"]
[WhiteElo "2564"]
[BlackElo "2343"]
[WhiteTeam "USA"]
[BlackTeam "UKR"]
[WhiteClock "0:00:51"]
[BlackClock "0:00:00"]

1. d4 {[%clk 0:03:00]}  g6 {[%clk 0:02:58]} 2. c4 {[%clk 0:02:59]}  Bg7 {[%clk 0:02:58]} 3. Nc3 {[%clk 0:02:58]}  d6 {[%clk 0:02:59]} 4. e4 {[%clk 0:02:58]}  e5 {[%clk 0:02:59]} 5. d5 {[%clk 0:02:54]}  f5 {[%clk 0:02:59]} 6. exf5 {[%clk 0:02:55]}  Bxf5 {[%clk 0:02:58]} 7. Bd3 {[%clk 0:02:53]}  Nf6 {[%clk 0:02:54]} 8. Nge2 {[%clk 0:02:47]}  O-O {[%clk 0:02:53]} 9. O-O {[%clk 0:02:45]}  Na6 {[%clk 0:02:33]} 10. Ng3 {[%clk 0:02:34]}  Bxd3 {[%clk 0:02:30]} 11. Qxd3 {[%clk 0:02:31]}  Nc5 {[%clk 0:02:31]} 12. Qc2 {[%clk 0:02:31]}  a5 {[%clk 0:02:31]} 13. b3 {[%clk 0:02:18]}  Qd7 {[%clk 0:02:13]} 14. Be3 {[%clk 0:02:15]}  b6 {[%clk 0:02:10]} 15. h3 {[%clk 0:02:11]}  Rae8 {[%clk 0:02:00]} 16. a3 {[%clk 0:02:11]}  Qf7 {[%clk 0:01:32]} 17. b4 {[%clk 0:01:53]}  Nb7 {[%clk 0:01:05]} 18. Nge4 {[%clk 0:01:44]}  Nxe4 {[%clk 0:01:01]} 19. Nxe4 {[%clk 0:01:44]}  h6 {[%clk 0:00:37]} 20. Qd2 {[%clk 0:01:41]}  Kh7 {[%clk 0:00:34]} 21. Rac1 {[%clk 0:01:32]}  Qf5 {[%clk 0:00:33]} 22. f3 {[%clk 0:01:31]}  axb4 {[%clk 0:00:28]} 23. axb4 {[%clk 0:01:31]}  Ra8 {[%clk 0:00:25]} 24. c5 {[%clk 0:01:27]}  bxc5 {[%clk 0:00:20]} 25. bxc5 {[%clk 0:01:28]}  Ra3 {[%clk 0:00:18]} 26. c6 {[%clk 0:01:20]}  Nd8 {[%clk 0:00:12]} 27. Ra1 {[%clk 0:01:19]}  Rxa1 {[%clk 0:00:09]} 28. Rxa1 {[%clk 0:01:19]}  Nf7 {[%clk 0:00:09]} 29. Ra7 {[%clk 0:01:19]}  Rc8 {[%clk 0:00:09]} 30. Qb4 {[%clk 0:01:14]}  g5 {[%clk 0:00:06]} 31. Qa5 {[%clk 0:01:09]}  Kg6 {[%clk 0:00:05]} 32. Rxc7 {[%clk 0:01:08]}  Rxc7 {[%clk 0:00:06]} 33. Qxc7 {[%clk 0:01:08]}  h5 {[%clk 0:00:07]} 34. Qb8 {[%clk 0:01:03]}  g4 {[%clk 0:00:07]} 35. hxg4 {[%clk 0:01:02]}  hxg4 {[%clk 0:00:08]} 36. c7 {[%clk 0:01:00]}  gxf3 {[%clk 0:00:07]} 37. c8=Q {[%clk 0:00:58]}  Qxe4 {[%clk 0:00:07]} 38. Qe6+ {[%clk 0:00:52]}  Bf6 {[%clk 0:00:06]} 39. Qg8+ {[%clk 0:00:52]}  Kh5 {[%clk 0:00:00]} 40. Qexf7+ {[%clk 0:00:51]} 1-0